[Event "Gibraltar Challengers B 2020"]
[Site "Caleta"]
[Date "2020.01.27"]
[Round "4.14"]
[White "Kandic, Milan"]
[Black "Herzwurm, Robert"]
[Result "1/2-1/2"]
[ECO "A48"]
[WhiteElo "2132"]
[BlackElo "1979"]
[Annotator "ChessBase"]
[PlyCount "78"]
[EventDate "2020.01.20"]
[EventType "swiss"]
[EventCountry "GGB"]
[SourceTitle "playchess.com"]
[Source "ChessBase"]
[SourceQuality "1"]
[TimeControl "6600+10"]

1. d4 {[%emt 0:12:02]} Nf6 {[%emt 0:00:00]} 2. Nf3 {[%emt 0:00:06]} g6 {[%emt 0:00:22]} 3. Bg5 {[%emt 0:00:19]} Bg7 {[%emt 0:00:27]} 4. Bxf6 {[%emt 0:00:59]} Bxf6 {[%emt 0:00:18]} 5. e4 {[%emt 0:00:03]} d6 {[%emt 0:00:44]} 6. Nc3 {[%emt 0:00:31]} O-O {[%emt 0:04:19]} 7. h3 {[%emt 0:04:49]} c5 {[%emt 0:05:02]} 8. d5 {[%emt 0:00:44]} b5 {[%emt 0:03:46]} 9. Bxb5 {[%emt 0:00:52]} Qb6 {[%emt 0:04:34]} 10. Rb1 {[%emt 0:04:53]} Bd7 {[%emt 0:11:29]} 11. Bc4 {[%emt 0:08:48]} Na6 {[%emt 0:05:49]} 12. O-O {[%emt 0:00:31]} Nc7 {[%emt 0:06:18]} 13. Qd3 {[%emt 0:03:50]} Rab8 {[%emt 0:02:42]} 14. Rfe1 {[%emt 0:01:17]} Bg7 {[%emt 0:02:32]} 15. Nh4 {[%emt 0:05:56]} Qa5 {[%emt 0:02:08]} 16. f4 {[%emt 0:01:15]} Rxb2 {[%emt 0:01:34]} 17. e5 {[%emt 0:07:05]} Rfb8 {[%emt 0:02:44]} 18. Rxb2 {[%emt 0:03:54]} Rxb2 {[%emt 0:00:05]} 19. Nf3 {[%emt 0:00:31]} Bf5 {[%emt 0:05:07]} 20. Ne4 {[%emt 0:02:42]} h5 {[%emt 0:05:49]} 21. Re2 {[%emt 0:05:22]} Qb6 {[%emt 0:21:56]} 22. exd6 {[%emt 0:07:37]} Qxd6 {[%emt 0:04:27]} 23. Qd2 {[%emt 0:14:17]} Bxe4 {[%emt 0:01:45]} 24. Rxe4 {[%emt 0:00:12]} Qf6 {[%emt 0:01:30]} 25. Ng5 {[%emt 0:04:28]} Qd6 {[%emt 0:01:50]} 26. Nf3 {[%emt 0:06:04]} Qf6 {[%emt 0:00:15]} 27. Qe2 {[%emt 0:00:52]} Ne8 {[%emt 0:02:40]} 28. Rxe7 {[%emt 0:03:13]} Nd6 {[%emt 0:00:12]} 29. Bd3 {[%emt 0:06:33]} Qxf4 {[%emt 0:01:41]} 30. Qf2 {[%emt 0:01:56]} Bf6 {[%emt 0:03:49]} 31. Re1 {[%emt 0:00:28]} Bc3 {[%emt 0:01:54]} 32. Rd1 {[%emt 0:00:18]} c4 {[%emt 0:02:21]} 33. Bf1 {[%emt 0:00:29]} Ne4 {[%emt 0:01:16]} 34. Qxa7 {[%emt 0:00:16]} Rxc2 {[%emt 0:01:11]} 35. d6 {[%emt 0:00:07]} Nd2 {[%emt 0:00:22]} 36. Qa8+ {[%emt 0:01:08]} Kg7 {[%emt 0:00:02]} 37. d7 {[%emt 0:00:04]} Bf6 {[%emt 0:02:18]} 38. Rxd2 {[%emt 0:01:06]} Rxd2 {[%emt 0:00:09]} 39. Nxd2 {[%emt 0:00:15]} Qxd2 {[%emt 0:00:21]} 1/2-1/2

[Event "Gibraltar Challengers B 2020"]
[Site "Caleta"]
[Date "2020.01.27"]
[Round "4.15"]
[White "Severijnen, Arjon"]
[Black "Garcia Rodriguez, Inaki"]
[Result "1-0"]
[ECO "C32"]
[WhiteElo "2120"]
[BlackElo "1944"]
[Annotator "ChessBase"]
[PlyCount "59"]
[EventDate "2020.01.20"]
[EventType "swiss"]
[EventCountry "GGB"]
[SourceTitle "playchess.com"]
[Source "ChessBase"]
[SourceQuality "1"]
[TimeControl "6600+10"]

1. e4 {[%emt 0:00:00]} e5 {[%emt 0:00:00]} 2. f4 {[%emt 0:00:18]} d5 {[%emt 0:00:09]} 3. exd5 {[%emt 0:00:11]} e4 {[%emt 0:00:03]} 4. d3 {[%emt 0:00:31]} Nf6 {[%emt 0:00:07]} 5. dxe4 {[%emt 0:00:33]} Nxe4 {[%emt 0:00:22]} 6. Be3 {[%emt 0:00:47]} Qh4+ {[%emt 0:05:22]} 7. g3 {[%emt 0:00:47]} Nxg3 {[%emt 0:00:24]} 8. Nf3 {[%emt 0:00:16]} Qe7 {[%emt 0:02:11]} 9. hxg3 {[%emt 0:02:02]} Qxe3+ {[%emt 0:00:24]} 10. Qe2 {[%emt 0:00:10]} Bc5 {[%emt 0:01:05]} 11. Qxe3+ {[%emt 0:04:52]} Bxe3 {[%emt 0:00:21]} 12. Bd3 {[%emt 0:02:08]} Bc1 {[%emt 0:08:15]} 13. Nbd2 {[%emt 0:02:30]} Bxb2 {[%emt 0:00:30]} 14. Rb1 {[%emt 0:00:07]} Bc3 {[%emt 0:00:55]} 15. Kf2 {[%emt 0:01:15]} Bxd2 {[%emt 0:07:15]} 16. Nxd2 {[%emt 0:00:25]} g6 {[%emt 0:00:11]} 17. Ne4 {[%emt 0:09:28]} Kf8 {[%emt 0:16:02]} 18. Ng5 {[%emt 0:20:06]} Kg7 {[%emt 0:09:39]} 19. Rhe1 {[%emt 0:00:52]} h6 {[%emt 0:01:53]} 20. Nf3 {[%emt 0:01:53]} Kf6 {[%emt 0:08:30]} 21. Ne5 {[%emt 0:05:26]} b6 {[%emt 0:04:13]} 22. Bc4 {[%emt 0:09:34]} Rf8 {[%emt 0:07:15]} 23. Rbd1 {[%emt 0:03:09]} Bb7 {[%emt 0:12:01]} 24. Ng4+ {[%emt 0:02:25]} Kg7 {[%emt 0:00:28]} 25. Re7 {[%emt 0:00:36]} Na6 {[%emt 0:03:14]} 26. d6 {[%emt 0:03:39]} Nc5 {[%emt 0:05:56]} 27. dxc7 {[%emt 0:07:55]} Rae8 {[%emt 0:01:59]} 28. Rxe8 {[%emt 0:02:49]} Rxe8 {[%emt 0:00:03]} 29. Rd8 {[%emt 0:00:55]} Kf8 {[%emt 0:00:02]} 30. Nf6 {[%emt 0:01:12]} 1-0

[Event "Gibraltar Challengers B 2020"]
[Site "Caleta"]
[Date "2020.01.27"]
[Round "4.16"]
[White "Lopez Gonzalez, Alfonso"]
[Black "Pakmor, Claus"]
[Result "1-0"]
[ECO "D03"]
[WhiteElo "2199"]
[BlackElo "1937"]
[Annotator "ChessBase"]
[PlyCount "73"]
[EventDate "2020.01.20"]
[EventType "swiss"]
[EventCountry "GGB"]
[SourceTitle "playchess.com"]
[Source "ChessBase"]
[SourceQuality "1"]
[TimeControl "6600+10"]

1. d4 {[%emt 0:13:37]} d5 {[%emt 0:00:02]} 2. Bg5 {[%emt 0:00:05]} h6 {[%emt 0:00:55]} 3. Bh4 {[%emt 0:00:34]} Nd7 {[%emt 0:00:09]} 4. Nf3 {[%emt 0:00:29]} Ngf6 {[%emt 0:00:10]} 5. e3 {[%emt 0:00:05]} e6 {[%emt 0:00:09]} 6. Nbd2 {[%emt 0:01:05]} Be7 {[%emt 0:02:13]} 7. Bd3 {[%emt 0:00:08]} c5 {[%emt 0:01:19]} 8. c3 {[%emt 0:00:10]} b6 {[%emt 0:00:21]} 9. Qe2 {[%emt 0:00:09]} Bb7 {[%emt 0:00:17]} 10. Ne5 {[%emt 0:01:27]} O-O {[%emt 0:13:55]} 11. g4 {[%emt 0:02:55]} Nxe5 {[%emt 0:08:53]} 12. dxe5 {[%emt 0:00:29]} Nd7 {[%emt 0:00:07]} 13. Bg3 {[%emt 0:00:35]} c4 {[%emt 0:02:16]} 14. Bc2 {[%emt 0:00:34]} d4 {[%emt 0:00:09]} 15. Be4 {[%emt 0:00:15]} Bxe4 {[%emt 0:01:07]} 16. Nxe4 {[%emt 0:00:07]} d3 {[%emt 0:00:05]} 17. Qd1 {[%emt 0:02:47]} f6 {[%emt 0:07:38]} 18. h4 {[%emt 0:01:20]} f5 {[%emt 0:04:14]} 19. Nd2 {[%emt 0:00:36]} b5 {[%emt 0:00:48]} 20. g5 {[%emt 0:00:26]} Qe8 {[%emt 0:05:40]} 21. Bf4 {[%emt 0:00:25]} h5 {[%emt 0:03:47]} 22. g6 {[%emt 0:01:02]} Qxg6 {[%emt 0:00:39]} 23. Nf3 {[%emt 0:00:11]} Kh8 {[%emt 0:10:04]} 24. Nd4 {[%emt 0:03:45]} a6 {[%emt 0:00:53]} 25. Qf3 {[%emt 0:00:16]} Nc5 {[%emt 0:07:19]} 26. O-O-O {[%emt 0:01:26]} Qf7 {[%emt 0:04:46]} 27. Rdg1 {[%emt 0:02:57]} g6 {[%emt 0:01:50]} 28. Rg2 {[%emt 0:01:54]} Rg8 {[%emt 0:00:31]} 29. Rhg1 {[%emt 0:00:16]} Ne4 {[%emt 0:00:34]} 30. Rxg6 {[%emt 0:03:55]} Qxg6 {[%emt 0:01:54]} 31. Rxg6 {[%emt 0:00:08]} Rxg6 {[%emt 0:00:06]} 32. Qxh5+ {[%emt 0:03:28]} Kg7 {[%emt 0:00:06]} 33. Nxe6+ {[%emt 0:00:10]} Kf7 {[%emt 0:00:11]} 34. Ng5+ {[%emt 0:00:14]} Bxg5 {[%emt 0:03:59]} 35. Qh7+ {[%emt 0:00:30]} Rg7 {[%emt 0:00:56]} 36. Qxf5+ {[%emt 0:00:07]} Bf6 {[%emt 0:01:44]} 37. Qxe4 {[%emt 0:00:22]} 1-0

[Event "Gibraltar Challengers B 2020"]
[Site "Caleta"]
[Date "2020.01.27"]
[Round "4.17"]
[White "Manukonda Arun"]
[Black "Schouten, Freek"]
[Result "0-1"]
[ECO "A57"]
[WhiteElo "1959"]
[BlackElo "2084"]
[Annotator "NA"]
[PlyCount "148"]
[EventDate "2020.01.20"]
[EventType "swiss"]
[EventCountry "GGB"]
[SourceTitle "playchess.com"]
[Source "ChessBase"]
[SourceQuality "1"]
[TimeControl "6600+10"]

1. d4 {[%emt 0:02:09]} Nf6 {[%emt 0:00:09]} 2. c4 {[%emt 0:00:05]} c5 {[%emt 0:00:15]} 3. d5 {[%emt 0:00:07]} b5 {[%emt 0:00:16]} 4. cxb5 {[%emt 0:00:04]} a6 {[%emt 0:00:04]} 5. f3 {[%emt 0:00:16]} d6 {[%emt 0:04:41]} 6. e4 {[%emt 0:00:04]} g6 {[%emt 0:00:13]} 7. Nc3 {[%emt 0:02:06]} Bg7 {[%emt 0:00:09]} 8. Be3 {[%emt 0:00:04]} O-O {[%emt 0:00:23]} 9. Bd3 {[%emt 0:02:32] A57: Benko/Volga Gambit} (9. a4 Ne8 10. Be2 axb5 11. axb5 Rxa1 12. Qxa1 Qb6 13. h4 h5 14. Nh3 Nc7 15. Qc1 Nd7 16. Nf2 Qb7 {1-0 (39) Berczes,D (2471)-Le,Q (2706) Las Vegas 2014}) 9... Nbd7 {[%emt 0:06:09]} 10. bxa6 {[%emt 0:05:24]} Ne5 $146 {[%emt 0:05:09]} ({Predecessor:} 10... Bxa6 11. Bxa6 Rxa6 12. Nge2 Nb6 13. O-O Nc4 14. Qc1 Nxe3 15. Qxe3 {0-1 (34) Bagdi,T-Nemeth,D Paks 1997}) 11. Be2 {[%emt 0:01:39]} Bxa6 {[%emt 0:01:09]} (11... Qb6 $11) 12. Bxa6 {[%emt 0:00:14]} Rxa6 {[%emt 0:00:11]} 13. Nge2 {[%emt 0:02:18]} Qa5 {[%emt 0:03:51]} 14. O-O {[%emt 0:01:00]} Nc4 {[%emt 0:04:45]} 15. Bc1 {[%emt 0:02:44]} Nd7 {[%emt 0:01:41]} 16. Qc2 {[%emt 0:00:52]} Rb8 {[%emt 0:01:04]} 17. b3 {[%emt 0:03:26]} ({Better is} 17. Rb1 $14) 17... Na3 {[%emt 0:04:25]} 18. Bxa3 {[%emt 0:07:31]} Qxa3 {[%emt 0:00:02]} 19. Rab1 {[%emt 0:02:23]} Ne5 {[%emt 0:03:34]} 20. Rfd1 {[%emt 0:03:19]} Rab6 {[%emt 0:10:03]} 21. f4 {[%emt 0:12:31]} Ng4 {[%emt 0:04:57]} (21... Nd7 $1 $15) 22. h3 {[%emt 0:01:08]} Ne3 {[%emt 0:00:57]} 23. Qc1 {[%emt 0:00:15]} Qxc1 {[%emt 0:10:25]} 24. Rdxc1 {[%emt 0:00:27]} e6 {[%emt 0:09:55]} 25. Kf2 {[%emt 0:07:09]} exd5 {[%emt 0:05:49]} 26. Na4 {[%emt 0:00:26]} Rb4 {[%emt 0:00:13]} 27. Kxe3 {[%emt 0:00:30]} Rxe4+ {[%emt 0:01:18]} 28. Kd2 {[%emt 0:07:09]} d4 {[%emt 0:05:22]} 29. Re1 {[%emt 0:01:57]} h5 {[%emt 0:02:29]} 30. g3 {[%emt 0:00:50]} Re3 {[%emt 0:03:38]} 31. Nb2 {[%emt 0:00:34]} d5 {[%emt 0:00:36]} 32. Nd3 {[%emt 0:13:17]} (32. Na4 $14 Ra8 33. Nc1 (33. Nxc5 Rxa2+ 34. Kd1 d3 $17) 33... Rxg3 34. Nxc5) 32... c4 {[%emt 0:12:24]} 33. bxc4 {[%emt 0:00:20]} Rxb1 {[%emt 0:00:02]} 34. Rxb1 {[%emt 0:00:09]} dxc4 {[%emt 0:00:03]} 35. Ne5 {[%emt 0:00:15]} Bxe5 {[%emt 0:01:37]} 36. fxe5 {[%emt 0:00:01]} c3+ {[%emt 0:00:09]} 37. Kd1 {[%emt 0:00:08]} c2+ {[%emt 0:00:32]} 38. Kxc2 {[%emt 0:00:03]} Rxe2+ {[%emt 0:00:04]} 39. Kb3 {[%emt 0:00:42]} Rxe5 {[%emt 0:04:12]} 40. a4 {[%emt 0:00:06]} f5 {[%emt 0:00:37]} 41. Kc4 {[%emt 0:00:12]} Ra5 {[%emt 0:00:41]} 42. Kb4 {[%emt 0:00:35]} Ra8 {[%emt 0:00:01]} 43. Rd1 {[%emt 0:01:06]} h4 {[%emt 0:00:45]} 44. gxh4 {[%emt 0:00:38]} Kg7 {[%emt 0:00:08]} 45. Rxd4 {[%emt 0:00:08]} Kh6 {[%emt 0:00:18]} 46. a5 {[%emt 0:00:17]} g5 {[%emt 0:00:47]} 47. hxg5+ {[%emt 0:00:31]} Kxg5 {[%emt 0:00:01]} 48. h4+ {[%emt 0:00:16]} Kf6 {[%emt 0:00:13]} 49. Rd6+ {[%emt 0:00:25]} Ke5 {[%emt 0:00:04]} 50. Rh6 {[%emt 0:01:16]} f4 {[%emt 0:00:04]} 51. Rh7 {[%emt 0:00:53]} Ke6 {[%emt 0:00:23]} 52. Rh6+ {[%emt 0:00:58]} Ke5 {[%emt 0:00:05]} 53. Rh5+ {[%emt 0:00:06]} Ke4 {[%emt 0:00:53]} 54. Kc3 {[%emt 0:00:59]} f3 {[%emt 0:00:15]} 55. Kd2 {[%emt 0:00:01]} Rb8 {[%emt 0:00:29]} 56. Rc5 {[%emt 0:00:53]} Rb2+ {[%emt 0:00:08]} 57. Ke1 {[%emt 0:00:30]} Rb1+ {[%emt 0:00:18]} 58. Kf2 {[%emt 0:00:07]} Rb2+ {[%emt 0:00:05]} 59. Kg3 {[%emt 0:00:16]} Rg2+ {[%emt 0:00:09]} 60. Kh3 {[%emt 0:00:01]} Rg8 {[%emt 0:00:12]} 61. Rc4+ {[%emt 0:02:28]} Ke3 {[%emt 0:00:02]} 62. Rc3+ {[%emt 0:00:08]} Ke2 {[%emt 0:00:01]} 63. Rc2+ {[%emt 0:00:33]} Ke1 {[%emt 0:00:02]} 64. Rc1+ {[%emt 0:00:38]} Kd2 {[%emt 0:00:01]} 65. Ra1 {[%emt 0:00:09]} f2 {[%emt 0:00:01]} 66. Ra2+ {[%emt 0:00:39]} Ke1 {[%emt 0:00:07]} 67. Ra1+ {[%emt 0:00:15]} Ke2 {[%emt 0:00:02]} 68. Ra2+ {[%emt 0:00:18]} Ke3 {[%emt 0:00:30]} 69. Ra3+ {[%emt 0:00:14]} Ke4 {[%emt 0:00:11]} 70. Ra4+ {[%emt 0:00:43]} Ke5 {[%emt 0:00:09]} 71. Ra1 {[%emt 0:02:07]} Rg1 {[%emt 0:00:01]} 72. Rf1 {[%emt 0:00:35]} Rxf1 {[%emt 0:00:03]} 73. Kg2 {[%emt 0:00:03]} Ra1 {[%emt 0:00:02]} 74. Kxf2 {[%emt 0:00:04]} Kf6 {[%emt 0:00:55]} 0-1

[Event "Gibraltar Challengers B 2020"]
[Site "Caleta"]
[Date "2020.01.28"]
[Round "4.18"]
[White "Stolniceanu, Victor-Dumitru"]
[Black "Stoica, Savas Marin"]
[Result "0-1"]
[ECO "B31"]
[WhiteElo "2074"]
[BlackElo "1689"]
[Annotator "NA"]
[PlyCount "42"]
[EventDate "2020.01.20"]
[EventType "swiss"]
[EventCountry "GGB"]
[SourceTitle "playchess.com"]
[Source "ChessBase"]
[SourceQuality "1"]
[TimeControl "6600+10"]

{[%evp 27,42,-79,32767,32767,-45,-73,-46,-163,-150,-186,-159,-329,-345,-29990,-29991,-2006,-29989]} 1. e4 {[%emt 0:16:33]} c5 {[%emt 0:00:00]} 2. Nf3 {[%emt 0:00:12]} Nc6 {[%emt 0:00:00]} 3. Bb5 {[%emt 0:00:12]} g6 {[%emt 0:00:08]} 4. O-O {[%emt 0:00:06]} Bg7 {[%emt 0:00:03]} 5. Bxc6 {[%emt 0:00:05]} bxc6 {[%emt 0:00:21]} 6. d3 {[%emt 0:00:28]} d6 {[%emt 0:00:10]} 7. h3 {[%emt 0:00:09]} Nh6 {[%emt 0:00:05] B31: Sicilian: 2...Nc6 3 Bb5 g6} (7... e5 8. c3 Ne7 9. d4 cxd4 10. cxd4 exd4 11. Nxd4 O-O 12. Nc3 h6 13. Be3 Kh7 14. Qd2 Rb8 15. b3 {1-0 (43) Tomashevsky,E (2716)-Li,C (2720) Doha 2016}) 8. Nbd2 {[%emt 0:01:20]} O-O {[%emt 0:00:10]} 9. Nb3 {[%emt 0:00:33]} f5 $146 {[%emt 0:02:40]} ({Predecessor:} 9... a5 10. a4 e5 11. Bd2 f5 12. Qe1 fxe4 13. Qxe4 {½-½ (30) Navarro Cabrera,A (1797)-Rojas Mirabal,P (2111) Gran Canaria 2015}) 10. e5 {[%emt 0:02:00]} Nf7 {[%emt 0:00:33]} 11. exd6 {[%emt 0:00:18]} exd6 {[%emt 0:00:09]} 12. c3 {[%emt 0:00:08]} Ba6 {[%emt 0:02:11]} 13. c4 {[%emt 0:02:02]} g5 {[%emt 0:01:38]} 14. Nh2 {[%emt 0:00:43]} f4 {[%emt 0:02:39]} 15. Rb1 {[%emt 0:01:27]} Ne5 {[%emt 0:00:58]} ({Black should play} 15... Bc8 $17 16. Bd2 Bf5) 16. Nf3 {[%emt 0:00:50]} Bc8 {[%emt 0:04:29]} 17. Bd2 {[%emt 0:00:13] [#]} (17. Nxe5 $15 Bxe5 18. Qf3) 17... g4 $1 {[%emt 0:05:34]} 18. Nxe5 Bxe5 {[%emt 0:00:01]} 19. hxg4 $2 {[%emt 0:18:15] [#]} (19. g3 $17) 19... f3 $1 {[%emt 0:00:12]} 20. gxf3 {[%emt 0:00:12]} (20. g3 $19 Bxg4 21. Qc1) 20... Qh4 {[%emt 0:00:14]} 21. f4 {[%emt 0:00:07]} Bxg4 {[%emt 0:00:05]} 0-1

[Event "Gibraltar Challengers B 2020"]
[Site "Caleta"]
[Date "2020.01.27"]
[Round "4.20"]
[White "Meszaros, Andras"]
[Black "Cannon, Richard J"]
[Result "1-0"]
[ECO "B40"]
[WhiteElo "2244"]
[BlackElo "1990"]
[Annotator "ChessBase"]
[PlyCount "63"]
[EventDate "2020.01.20"]
[EventType "swiss"]
[EventCountry "GGB"]
[SourceTitle "playchess.com"]
[Source "ChessBase"]
[SourceQuality "1"]
[TimeControl "6600+10"]

1. e4 {[%emt 0:00:00]} e6 {[%emt 0:00:00]} 2. b3 {[%emt 0:00:03]} b6 {[%emt 0:00:04]} 3. Nc3 {[%emt 0:02:04]} Bb7 {[%emt 0:01:34]} 4. Nf3 {[%emt 0:00:11]} c5 {[%emt 0:00:32]} 5. Bb2 {[%emt 0:00:39]} Nc6 {[%emt 0:00:35]} 6. g3 {[%emt 0:04:08]} a6 {[%emt 0:02:10]} 7. Bg2 {[%emt 0:00:11]} Nf6 {[%emt 0:01:24]} 8. O-O {[%emt 0:00:13]} Qc7 {[%emt 0:00:39]} 9. Re1 {[%emt 0:00:17]} d6 {[%emt 0:01:03]} 10. d4 {[%emt 0:06:31]} cxd4 {[%emt 0:00:28]} 11. Nxd4 {[%emt 0:00:04]} Be7 {[%emt 0:00:36]} 12. a4 {[%emt 0:42:39]} Rc8 {[%emt 0:05:00]} 13. Nce2 {[%emt 0:05:10]} Nb8 {[%emt 0:06:53]} 14. c4 {[%emt 0:00:18]} Bxe4 {[%emt 0:03:02]} 15. Bxe4 {[%emt 0:02:17]} Nxe4 {[%emt 0:00:05]} 16. Nf4 {[%emt 0:00:16]} Qb7 {[%emt 0:02:32]} 17. Qe2 {[%emt 0:08:50]} Nf6 {[%emt 0:18:07]} 18. Nf5 {[%emt 0:02:03]} exf5 {[%emt 0:05:15]} 19. Bxf6 {[%emt 0:00:07]} gxf6 {[%emt 0:00:11]} 20. Nd5 {[%emt 0:00:03]} Nc6 {[%emt 0:00:50]} 21. Qf3 {[%emt 0:00:08]} Rb8 {[%emt 0:03:12]} 22. Qxf5 {[%emt 0:00:38]} O-O {[%emt 0:04:51]} 23. Rxe7 {[%emt 0:00:36]} Qxe7 {[%emt 0:06:47]} 24. Nxe7+ {[%emt 0:00:49]} Nxe7 {[%emt 0:00:06]} 25. Qxf6 {[%emt 0:00:04]} Ng6 {[%emt 0:01:17]} 26. Rd1 {[%emt 0:00:15]} b5 {[%emt 0:02:01]} 27. cxb5 {[%emt 0:00:06]} axb5 {[%emt 0:00:06]} 28. a5 {[%emt 0:00:02]} Ra8 {[%emt 0:02:04]} 29. b4 {[%emt 0:00:11]} Rfe8 {[%emt 0:01:00]} 30. Rxd6 {[%emt 0:00:09]} Ne5 {[%emt 0:02:32]} 31. h4 {[%emt 0:00:20]} Rac8 {[%emt 0:00:24]} 32. h5 {[%emt 0:00:15]} 1-0

[Event "Gibraltar Challengers B 2020"]
[Site "Caleta"]
[Date "2020.01.27"]
[Round "4.21"]
[White "Havik, Victor"]
[Black "Boardman, Jeffrey"]
[Result "1-0"]
[ECO "D78"]
[WhiteElo "2101"]
[BlackElo "1972"]
[Annotator "ChessBase"]
[PlyCount "104"]
[EventDate "2020.01.20"]
[EventType "swiss"]
[EventCountry "GGB"]
[SourceTitle "playchess.com"]
[Source "ChessBase"]
[SourceQuality "1"]
[TimeControl "6600+10"]

1. c4 {[%emt 0:06:41]} Nf6 {[%emt 0:00:39]} 2. Nf3 {[%emt 0:01:31]} c6 {[%emt 0:00:42]} 3. g3 {[%emt 0:01:14]} g6 {[%emt 0:00:52]} 4. Bg2 {[%emt 0:00:11]} Bg7 {[%emt 0:00:11]} 5. O-O {[%emt 0:01:25]} O-O {[%emt 0:00:25]} 6. d4 {[%emt 0:04:27]} d5 {[%emt 0:00:16]} 7. Nc3 {[%emt 0:00:12]} dxc4 {[%emt 0:09:07]} 8. a4 {[%emt 0:02:21]} a5 {[%emt 0:09:17]} 9. h3 {[%emt 0:02:03]} Na6 {[%emt 0:01:45]} 10. e4 {[%emt 0:03:42]} Nb4 {[%emt 0:00:26]} 11. Be3 {[%emt 0:00:12]} Bd7 {[%emt 0:07:58]} 12. Ne5 {[%emt 0:03:46]} b5 {[%emt 0:07:44]} 13. f4 {[%emt 0:00:22]} Ne8 {[%emt 0:03:04]} 14. g4 {[%emt 0:07:20]} Bxe5 {[%emt 0:11:18]} 15. fxe5 {[%emt 0:00:50]} Nd3 {[%emt 0:01:00]} 16. b3 {[%emt 0:10:00]} c5 {[%emt 0:09:53]} 17. e6 {[%emt 0:20:21]} Bxe6 {[%emt 0:17:30]} 18. d5 {[%emt 0:00:25]} Bd7 {[%emt 0:07:05]} 19. axb5 {[%emt 0:01:29]} Qb6 {[%emt 0:00:41]} 20. bxc4 {[%emt 0:00:26]} Ne5 {[%emt 0:01:35]} 21. Na4 {[%emt 0:00:35]} Qc7 {[%emt 0:00:15]} 22. Rc1 {[%emt 0:00:22]} Nd6 {[%emt 0:00:33]} 23. Qe2 {[%emt 0:00:14]} Nb7 {[%emt 0:00:46]} 24. Bf4 {[%emt 0:01:17]} f6 {[%emt 0:00:46]} 25. Qe3 {[%emt 0:03:58]} Rac8 {[%emt 0:01:50]} 26. Qc3 {[%emt 0:01:02]} Qd6 {[%emt 0:01:16]} 27. g5 {[%emt 0:01:26]} Rce8 {[%emt 0:01:06]} 28. Rc2 {[%emt 0:01:50]} Ra8 {[%emt 0:00:20]} 29. Nb2 {[%emt 0:08:30]} Nd8 {[%emt 0:05:23]} 30. Nd3 {[%emt 0:00:34]} Ndf7 {[%emt 0:00:04]} 31. Ra2 {[%emt 0:00:46]} a4 {[%emt 0:00:35]} 32. Rfa1 {[%emt 0:00:16]} Qc7 {[%emt 0:03:53]} 33. Rxa4 {[%emt 0:00:35]} Rxa4 {[%emt 0:00:07]} 34. Rxa4 {[%emt 0:00:04]} Qc8 {[%emt 0:00:46]} 35. gxf6 {[%emt 0:06:29]} exf6 {[%emt 0:00:32]} 36. Nxe5 {[%emt 0:08:35]} Nxe5 {[%emt 0:01:19]} 37. Bxe5 {[%emt 0:00:42]} fxe5 {[%emt 0:00:05]} 38. Qxe5 {[%emt 0:00:05]} Bxh3 {[%emt 0:00:08]} 39. Bxh3 {[%emt 0:00:05]} Qxh3 {[%emt 0:00:06]} 40. Qe6+ {[%emt 0:00:04]} Qxe6 {[%emt 0:00:12]} 41. dxe6 {[%emt 0:00:03]} Rb8 {[%emt 0:01:46]} 42. Ra7 {[%emt 0:00:22]} Kf8 {[%emt 0:00:49]} 43. Rxh7 {[%emt 0:01:13]} Rb6 {[%emt 0:00:07]} 44. Rf7+ {[%emt 0:00:06]} Ke8 {[%emt 0:00:13]} 45. Rf6 {[%emt 0:00:20]} Rd6 {[%emt 0:00:27]} 46. Rxg6 {[%emt 0:00:39]} Ke7 {[%emt 0:01:03]} 47. Rg5 {[%emt 0:00:20]} Rd1+ {[%emt 0:01:24]} 48. Kf2 {[%emt 0:00:14]} Kd6 {[%emt 0:00:01]} 49. Rd5+ {[%emt 0:00:11]} Ke7 {[%emt 0:00:06]} 50. Rg5 Rd6 {[%emt 0:00:02]} 51. Kg1 {[%emt 0:00:09]} Rxe6 {[%emt 0:00:01]} 52. Rxc5 {[%emt 0:00:02]} Rxe4 1-0

[Event "Gibraltar Challengers B 2020"]
[Site "Caleta"]
[Date "2020.01.27"]
[Round "4.22"]
[White "Omovie Ejenavi"]
[Black "Perez Ruiz, Santiago"]
[Result "1/2-1/2"]
[ECO "E42"]
[WhiteElo "2089"]
[BlackElo "1953"]
[Annotator "NA"]
[PlyCount "50"]
[EventDate "2020.01.20"]
[EventType "swiss"]
[EventCountry "GGB"]
[SourceTitle "playchess.com"]
[Source "ChessBase"]
[SourceQuality "1"]
[TimeControl "6600+10"]

1. d4 {[%emt 0:00:00]} Nf6 {[%emt 0:01:59]} 2. c4 {[%emt 0:00:06]} e6 {[%emt 0:00:18]} 3. Nc3 {[%emt 0:00:06]} Bb4 {[%emt 0:00:23]} 4. e3 {[%emt 0:00:06]} c5 {[%emt 0:01:56]} 5. Nge2 {[%emt 0:00:06]} O-O {[%emt 0:02:26]} 6. a3 {[%emt 0:00:05]} cxd4 {[%emt 0:00:09]} 7. exd4 {[%emt 0:00:08]} Be7 {[%emt 0:02:08]} 8. d5 {[%emt 0:01:08]} d6 {[%emt 0:00:18] E42: Nimzo-Indian: Rubinstein: 4...c5 5 Ne2} (8... exd5 9. cxd5 Bc5 10. b4 Bd6 11. g3 Be5 12. Bg2 a5 13. b5 d6 14. Be3 Nbd7 15. O-O Nc5 16. f4 Bxc3 17. Nxc3 Bf5 18. Bxc5 dxc5 {½-½ (58) Flom,G (2467)-Alterman,B (2605) Israel 2019}) 9. g3 {[%emt 0:01:52]} e5 {[%emt 0:00:48]} 10. Bg2 {[%emt 0:00:06]} Nbd7 {[%emt 0:00:44]} 11. O-O {[%emt 0:00:19]} a5 {[%emt 0:07:44]} 12. h3 {[%emt 0:00:22]} Nc5 {[%emt 0:00:39]} 13. Be3 {[%emt 0:00:11]} Bf5 $146 {[%emt 0:07:41]} ({Predecessor:} 13... Na6 14. b4 axb4 15. axb4 Bd7 16. Qb3 {1-0 (39) Gaborit,J (2320)-Falgueras Marti,C Olot 1994}) 14. Bxc5 {[%emt 0:00:12]} dxc5 {[%emt 0:00:06]} 15. Nb5 {[%emt 0:00:13]} Ne8 {[%emt 0:03:26]} 16. Nec3 {[%emt 0:00:20]} Nd6 {[%emt 0:00:35]} 17. Qe2 {[%emt 0:00:38]} Bf6 {[%emt 0:09:23]} (17... Re8 $11) 18. Nxd6 {[%emt 0:00:30]} Qxd6 {[%emt 0:00:07]} 19. Nb5 {[%emt 0:00:27]} Qb6 {[%emt 0:04:38]} 20. Qe3 {[%emt 0:02:26]} Bd7 {[%emt 0:01:11]} 21. a4 {[%emt 0:00:21]} Bxb5 {[%emt 0:00:45]} 22. axb5 {[%emt 0:00:07]} Qd6 {[%emt 0:00:25]} 23. Rfe1 {[%emt 0:05:10]} b6 {[%emt 0:01:03]} 24. Rad1 {[%emt 0:00:40]} g6 {[%emt 0:01:18]} 25. h4 $15 {[%emt 0:00:18]} h5 {[%emt 0:01:02]} 1/2-1/2